Workbook

Sheet Face Page
A1: Form Approved Through 6/30/2012 | O1: OMB No. 0925-0001
A2: Department of Health and Human Services | H2: LEAVE BLANK—FOR PHS USE ONLY.
A3: Public Health Services | H3: Type | I3: Activity | L3: Number
H4: Review Group | L4: Formerly
A5: Do not exceed character length restrictions indicated. | H5: Council/Board (Month, Year) | L5: Date Received
A7: 1. TITLE OF PROJECT (Do not exceed 81 characters, including spaces and punctuation.)
A9: 2. RESPONSE TO SPECIFIC REQUEST FOR APPLICATIONS OR PROGRAM ANNOUNCEMENT OR SOLICITATION | N9: NO | O9: YES
A10: (If "Yes," state number and title)
A11: Number: | D11: Title:
A12: 3. PROGRAM DIRECTOR/PRINCIPAL INVESTIGATOR
A13: 3a. NAME (Last, first, middle) | H13: 3b. DEGREE(S) | K13: 3h. | L13: eRA Commons User Name
A15: 3c. POSITION TITLE | H15: 3d. MAILING ADDRESS (Street, city, state, zip code)
A17: 3e. DEPARTMENT, SERVICE, LABORATORY, OR EQUIVALENT
A19: 3f. MAJOR SUBDIVISION | I19: Ames, IA 50011-xxxx
A21: 3g. TELEPHONE AND FAX (Area code, number and extension) | H21: E-MAIL ADDRESS:
A22: TEL: | B22: (515) 294-xxxx | E22: FAX: | G22: (515) 294-xxxx
A23: 4. HUMAN SUBJECTS RESEARCH | F23: 4a. Research Exempt | H23: If "Yes," Exemption No.
A24: No | B24: Yes | F24: No Yes
A25: 4b. Federal-Wide Assurance No. | F25: 4c. Clinical Trial | J25: 4d. NIH-defined Phase III Clinical Trial
F26: No Yes | J26: No | L26: Yes
A27: 5. VERTEBRATE ANIMALS | D27: No | E27: Yes | H27: 5a. Animal Welfare Assurance No.
A28: 6. DATES OF PROPOSED PERIOD OF | G28: 7. COSTS REQUESTED FOR INITIAL | J28: 8. COSTS REQUESTED FOR PROPOSED
A29: SUPPORT (month, day, year--MM/DD/YY) | G29: BUDGET PERIOD | J29: PERIOD OF SUPPORT
A30: From | C30: Through | G30: 7a. Direct Costs ($) | H30: 7b. Total Costs ($) | J30: 8a. Direct Costs ($) | N30: 8b. Total Costs ($)
G31: ='Base Budget'!L172+'Base Budget'!L193 -> 0 | H31: ='Base Budget'!$L$201 -> 0 | J31: ='Base Budget'!V172+'Base Budget'!V193 -> 0 | N31: ='Base Budget'!$E$208 -> 0
A32: 9. APPLICANT ORGANIZATION | H32: 10. TYPE OF ORGANIZATION
A33: Name | B33: Iowa State University of Science and Technology | H33: Public: | J33: Federal | L33: State | N33: Local
A34: Address | B34: Office of Sponsored Programs Administration | H34: Private: | J34: Private Nonprofit
B35: 1138 Pearson | H35: For-profit: | J35: General | L35: Small Business
B36: Ames, IA 50011-2207 | H36: Woman-owned | J36: Socially and Economically Disadvantaged
H37: 11. ENTITY IDENTIFICATION NUMBER
H38: 426004224
H39: DUNS NO | J39: 005309844 | L39: Cong. District | O39: IA-004
A40: 12. ADMINISTRATIVE OFFICIAL TO BE NOTIFIED IF AWARD IS MADE | H40: 13. OFFICIAL SIGNING FOR APPLICANT ORGANIZATION
A41: Name | B41: Rochelle Athey | H41: Name | I41: Sara Jane M. Oftelie
A42: Title | B42: Director, OSPA | H42: Title | I42: Manager, Pre-Award Services
A43: Address | B43: Iowa State University of Science and Technology | H43: Address | I43: Iowa State University of Science and Technology
B44: Office of Sponsored Programs Administration | I44: Office of Sponsored Programs Administration
B45: 1138 Pearson | I45: 1138 Pearson
B46: Ames, IA 50011-2207 | I46: Ames, IA 50011-2207
A47: Tel: | B47: 515-294-5225 | F47: FAX: | G47: 515-294-8000 | H47: Tel: | I47: 515-294-5225 | M47: FAX: | N47: 515-294-8000
A48: E-Mail: | B48: grants@iastate.edu | H48: E-Mail: | I48: grants@iastate.edu
H49: SIGNATURE OF OFFICIAL NAMED IN 13. | O49: DATE
H50: (In ink. "Per" signature not acceptable.)
A53: PHS 398 (Rev. 6/09) | G53: Face Page | O53: Form Page 1

Sheet Base Budget
C1: NIH Modular Grant Worksheet, 1 - 5 Years
AD2: Eff 7/1/2013
C3: Iowa State University | AD3: Updated 7/5/2013
C5: Indirect Cost Categories:
C6: 0.5 | E6: On-Campus Organized Research
C7: 0.51 | E7: On Campus Instruction
C8: 0.32 | E8: On-Campus Other Sponsored Activities
C9: 0.26 | E9: Off-Campus All Programs
C12: Increment Rate (Non-Personnel) | G12: 0.04
C13: Increment Rate (Personnel) | G13: 0.03
C14: Faculty Benefits | G14: 0.315
C15: P&S Benefits | G15: 0.378
C16: Merit Benefits | G16: 0.5
C17: Post Doc | G17: 0.23
C18: Undergraduate | G18: 0.046
C19: Graduate Assistants (per year) | G19: 0.13 | L19: Note: A module is any multiple of $25,000 up to, and including $250,000.
C20: F&A (Indirect) Rate | G20: 0.5 | L20: 1 | N20: << Number of Years for Project
G27: NIH Salary Cap policy @ http://grants.nih.gov/grants/guide/notice-files/NOT-OD-12-035.html
C28: Personnel
E30: Faculty: Enter Either Summer (SM) Academic (AY) or Calendar (CM) Months
A31: Months: Either SM/AY or CM | C31: Faculty
C32: Name | E32: SM | F32: AY | G32: CM | I32: Monthly Salary | K32: Year 1 | L32: Year 1 | N32: Year 2 | P32: Year 3 | R32: Year 4 | T32: Year 5
A33: =IF(B33=1,A32+1,0) -> 0 | B33: =IF(G33=0,0,1) -> 0 | C33: PI name | E33: 0 | F33: 0 | G33: 0 | I33: 0 | K33: =#REF!*H33 ->  | L33: =ROUND(E33*I33+F33*I33+G33*I33,0) -> 0 | N33: =IF(term>1,ROUND(SUM(L33+(L33*$G$13)),0),0) -> 0 | P33: =IF(term>2,ROUND(SUM(N33+(N33*$G$13)),0),0) -> 0 | R33: =IF(term>3,ROUND(SUM(P33+(P33*$G$13)),0),0) -> 0 | T33: =IF(term>4,ROUND(SUM(R33+(R33*$G$13)),0),0) -> 0
A34: =IF(B34=1,SUM(A33:A33)+1,0) -> 0 | B34: =IF(G34=0,0,1) -> 0 | E34: 0 | F34: 0 | G34: 0 | I34: 0 | K34: =#REF!*H34 ->  | L34: =ROUND(E34*I34+F34*I34+G34*I34,0) -> 0 | N34: 0 | P34: 0 | R34: 0 | T34: 0
A35: =IF(B35=1,SUM(B33:B34)+1,0) -> 0 | B35: =IF(G35=0,0,1) -> 0 | E35: 0 | F35: 0 | G35: 0 | I35: 0 | K35: =#REF!*H35 ->  | L35: 0 | N35: 0 | P35: 0 | R35: 0 | T35: 0
A36: =IF(B36=1,SUM(B33:B35)+1,0) -> 0 | B36: =IF(G36=0,0,1) -> 0 | E36: 0 | F36: 0 | G36: 0 | I36: 0 | K36: =#REF!*H36 ->  | L36: 0 | N36: 0 | P36: 0 | R36: 0 | T36: 0
E37: 0 | F37: 0 | G37: 0 | I37: 0 | K37: =#REF!*H37 ->  | L37: 0 | N37: 0 | P37: 0 | R37: 0 | T37: 0
A38: =IF(B38=1,SUM(B33:B36)+1,0) -> 0 | B38: =IF(G38=0,0,1) -> 0 | E38: 0 | F38: 0 | G38: 0 | I38: 0 | K38: =#REF!*H38 ->  | L38: 0 | N38: 0 | P38: 0 | R38: 0 | T38: 0
C39: Subtotals | K39: =SUM(K33:K38) ->  | L39: =SUM(L33:L38) -> 0 | N39: =SUM(N33:N38) -> 0 | P39: =SUM(P33:P38) -> 0 | R39: =SUM(R33:R38) -> 0 | T39: =SUM(T33:T38) -> 0
C41: Professional & Scientific
C42: Name | G42: Cal Mo | I42: Monthly Salary | L42: Year 1 | N42: Year 2 | P42: Year 3 | R42: Year 4 | T42: Year 5
A43: =IF(B43=1,SUM(B33:B38)+1,0) -> 0 | B43: =IF(G43=0,0,1) -> 0 | G43: 0 | I43: 0 | K43: =+L43*Professional -> 0 | L43: =ROUND(G43*I43,0) -> 0 | N43: =IF(term>1,ROUND(SUM(L43+(L43*$G$13)),0),0) -> 0 | P43: =IF(term>2,ROUND(SUM(N43+(N43*$G$13)),0),0) -> 0 | R43: =IF(term>3,ROUND(SUM(P43+(P43*$G$13)),0),0) -> 0 | T43: =IF(term>4,ROUND(SUM(R43+(R43*$G$13)),0),0) -> 0
A44: =IF(B44=1,SUM(B33:B43)+1,0) -> 0 | B44: =IF(G44=0,0,1) -> 0 | G44: 0 | I44: 0 | K44: =+L44*Professional -> 0 | L44: =ROUND(G44*I44,0) -> 0 | N44: =IF(term>1,ROUND(SUM(L44+(L44*$G$13)),0),0) -> 0 | P44: =IF(term>2,ROUND(SUM(N44+(N44*$G$13)),0),0) -> 0 | R44: =IF(term>3,ROUND(SUM(P44+(P44*$G$13)),0),0) -> 0 | T44: =IF(term>4,ROUND(SUM(R44+(R44*$G$13)),0),0) -> 0
A45: =IF(B45=1,SUM(B33:B44)+1,0) -> 0 | B45: =IF(G45=0,0,1) -> 0 | G45: 0 | I45: 0 | K45: =+L45*Professional -> 0 | L45: 0 | N45: =IF(term>1,ROUND(SUM(L45+(L45*$G$13)),0),0) -> 0 | P45: =IF(term>2,ROUND(SUM(N45+(N45*$G$13)),0),0) -> 0 | R45: =IF(term>3,ROUND(SUM(P45+(P45*$G$13)),0),0) -> 0 | T45: =IF(term>4,ROUND(SUM(R45+(R45*$G$13)),0),0) -> 0
A46: =IF(B46=1,SUM(B33:B45)+1,0) -> 0 | B46: =IF(G46=0,0,1) -> 0 | G46: 0 | I46: 0 | K46: =+L46*Professional -> 0 | L46: 0 | N46: =IF(term>1,ROUND(SUM(L46+(L46*$G$13)),0),0) -> 0 | P46: =IF(term>2,ROUND(SUM(N46+(N46*$G$13)),0),0) -> 0 | R46: =IF(term>3,ROUND(SUM(P46+(P46*$G$13)),0),0) -> 0 | T46: =IF(term>4,ROUND(SUM(R46+(R46*$G$13)),0),0) -> 0
A47: =IF(B47=1,SUM(B33:B46)+1,0) -> 0 | B47: =IF(G47=0,0,1) -> 0 | G47: 0 | I47: 0 | K47: =+L47*Professional -> 0 | L47: 0 | N47: =IF(term>1,ROUND(SUM(L47+(L47*$G$13)),0),0) -> 0 | P47: =IF(term>2,ROUND(SUM(N47+(N47*$G$13)),0),0) -> 0 | R47: =IF(term>3,ROUND(SUM(P47+(P47*$G$13)),0),0) -> 0 | T47: =IF(term>4,ROUND(SUM(R47+(R47*$G$13)),0),0) -> 0
C48: Subtotals | L48: =SUM(L43:L47) -> 0 | N48: =SUM(N43:N47) -> 0 | P48: =SUM(P43:P47) -> 0 | R48: =SUM(R43:R47) -> 0 | T48: =SUM(T43:T47) -> 0
C51: Merit
C52: Name | G52: Cal Mo | I52: Monthly Salary | L52: Year 1 | N52: Year 2 | P52: Year 3 | R52: Year 4 | T52: Year 5
A53: =IF(B53=1,SUM($B$33:B52)+1,0) -> 0 | B53: =IF(G53=0,0,1) -> 0 | G53: 0 | I53: 0 | K53: =+L53*Merit -> 0 | L53: =ROUND(G53*I53,0) -> 0 | N53: =IF(term>1,ROUND(SUM(L53+(L53*$G$13)),0),0) -> 0 | P53: =IF(term>2,ROUND(SUM(N53+(N53*$G$13)),0),0) -> 0 | R53: =IF(term>3,ROUND(SUM(P53+(P53*$G$13)),0),0) -> 0 | T53: =IF(term>4,ROUND(SUM(R53+(R53*$G$13)),0),0) -> 0
A54: =IF(B54=1,SUM($B$33:B53)+1,0) -> 0 | B54: =IF(G54=0,0,1) -> 0 | G54: 0 | I54: 0 | K54: =+L54*Merit -> 0 | L54: =ROUND(G54*I54,0) -> 0 | N54: =IF(term>1,ROUND(SUM(L54+(L54*$G$13)),0),0) -> 0 | P54: =IF(term>2,ROUND(SUM(N54+(N54*$G$13)),0),0) -> 0 | R54: =IF(term>3,ROUND(SUM(P54+(P54*$G$13)),0),0) -> 0 | T54: =IF(term>4,ROUND(SUM(R54+(R54*$G$13)),0),0) -> 0
A55: =IF(B55=1,SUM($B$33:B54)+1,0) -> 0 | B55: =IF(G55=0,0,1) -> 0 | G55: 0 | I55: 0 | K55: =+L55*Merit -> 0 | L55: 0 | N55: =IF(term>1,ROUND(SUM(L55+(L55*$G$13)),0),0) -> 0 | P55: =IF(term>2,ROUND(SUM(N55+(N55*$G$13)),0),0) -> 0 | R55: =IF(term>3,ROUND(SUM(P55+(P55*$G$13)),0),0) -> 0 | T55: =IF(term>4,ROUND(SUM(R55+(R55*$G$13)),0),0) -> 0
A56: =IF(B56=1,SUM($B$33:B55)+1,0) -> 0 | B56: =IF(G56=0,0,1) -> 0 | G56: 0 | I56: 0 | K56: =+L56*Merit -> 0 | L56: 0 | N56: =IF(term>1,ROUND(SUM(L56+(L56*$G$13)),0),0) -> 0 | P56: =IF(term>2,ROUND(SUM(N56+(N56*$G$13)),0),0) -> 0 | R56: =IF(term>3,ROUND(SUM(P56+(P56*$G$13)),0),0) -> 0 | T56: =IF(term>4,ROUND(SUM(R56+(R56*$G$13)),0),0) -> 0
A57: =IF(B57=1,SUM($B$33:B56)+1,0) -> 0 | B57: =IF(G57=0,0,1) -> 0 | G57: 0 | I57: 0 | K57: =+L57*Merit -> 0 | L57: 0 | N57: =IF(term>1,ROUND(SUM(L57+(L57*$G$13)),0),0) -> 0 | P57: =IF(term>2,ROUND(SUM(N57+(N57*$G$13)),0),0) -> 0 | R57: =IF(term>3,ROUND(SUM(P57+(P57*$G$13)),0),0) -> 0 | T57: =IF(term>4,ROUND(SUM(R57+(R57*$G$13)),0),0) -> 0
C58: Subtotals | L58: =SUM(L53:L57) -> 0 | N58: =SUM(N53:N57) -> 0 | P58: =SUM(P53:P57) -> 0 | R58: =SUM(R53:R57) -> 0 | T58: =SUM(T53:T57) -> 0
C61: Post Doctoral | G61: Salary cap for Post Docs http://grants.nih.gov/grants/guide/notice-files/NOT-OD-12-033.html
C62: Name | G62: Cal Mo | I62: Monthly Salary | L62: Year 1 | N62: Year 2 | P62: Year 3 | R62: Year 4 | T62: Year 5
A63: =IF(B63=1,SUM($B$33:B62)+1,0) -> 0 | B63: =IF(G63=0,0,1) -> 0 | G63: 0 | I63: 0 | K63: =+L63*PostDoc -> 0 | L63: =ROUND(G63*I63,0) -> 0 | N63: =IF(term>1,ROUND(SUM((L63*1.03)),0),0) -> 0 | P63: =IF(term>2,ROUND(SUM((N63*1.03)),0),0) -> 0 | R63: =IF(term>3,ROUND(SUM((P63*1.03)),0),0) -> 0 | T63: =IF(term>4,ROUND(SUM((R63*1.03)),0),0) -> 0
A64: =IF(B64=1,SUM($B$33:B63)+1,0) -> 0 | B64: =IF(G64=0,0,1) -> 0 | G64: 0 | I64: 0 | K64: =+L64*PostDoc -> 0 | L64: =ROUND(G64*I64,0) -> 0 | N64: =IF(term>1,ROUND(SUM((L64*1.03)),0),0) -> 0 | P64: =IF(term>2,ROUND(SUM((N64*1.03)),0),0) -> 0 | R64: =IF(term>3,ROUND(SUM((P64*1.03)),0),0) -> 0 | T64: =IF(term>4,ROUND(SUM((R64*1.03)),0),0) -> 0
A65: =IF(B65=1,SUM($B$33:B64)+1,0) -> 0 | B65: =IF(G65=0,0,1) -> 0 | G65: 0 | I65: 0 | K65: =+L65*PostDoc -> 0 | L65: 0 | N65: =IF(term>1,ROUND(SUM((L65*1.03)),0),0) -> 0 | P65: =IF(term>2,ROUND(SUM((N65*1.03)),0),0) -> 0 | R65: =IF(term>3,ROUND(SUM((P65*1.03)),0),0) -> 0 | T65: =IF(term>4,ROUND(SUM((R65*1.03)),0),0) -> 0
A66: =IF(B66=1,SUM($B$33:B65)+1,0) -> 0 | B66: =IF(G66=0,0,1) -> 0 | G66: 0 | I66: 0 | K66: =+L66*PostDoc -> 0 | L66: 0 | N66: =IF(term>1,ROUND(SUM((L66*1.03)),0),0) -> 0 | P66: =IF(term>2,ROUND(SUM((N66*1.03)),0),0) -> 0 | R66: =IF(term>3,ROUND(SUM((P66*1.03)),0),0) -> 0 | T66: =IF(term>4,ROUND(SUM((R66*1.03)),0),0) -> 0
A67: =IF(B67=1,SUM($B$33:B66)+1,0) -> 0 | B67: =IF(G67=0,0,1) -> 0 | G67: 0 | I67: 0 | K67: =+L67*PostDoc -> 0 | L67: 0 | N67: =IF(term>1,ROUND(SUM((L67*1.03)),0),0) -> 0 | P67: =IF(term>2,ROUND(SUM((N67*1.03)),0),0) -> 0 | R67: =IF(term>3,ROUND(SUM((P67*1.03)),0),0) -> 0 | T67: =IF(term>4,ROUND(SUM((R67*1.03)),0),0) -> 0
C68: Subtotals | L68: =SUM(L63:L67) -> 0 | N68: =SUM(N63:N67) -> 0 | P68: =SUM(P63:P67) -> 0 | R68: =SUM(R63:R67) -> 0 | T68: =SUM(T63:T67) -> 0
G70: Salary Cap for Graduate Students @ http://grants.nih.gov/grants/guide/notice-files/NOT-OD-12-033.html
C71: Graduate Assistants | I71: Annual
C72: Name | I72: Project Salary | L72: Year 1 | N72: Year 2 | P72: Year 3 | R72: Year 4 | T72: Year 5
A73: =IF(B73=1,SUM($B$33:B72)+1,0) -> 0 | B73: =IF(L73=0,0,1) -> 0 | I73: 0 | K73: =+L73*Grad -> 0 | N73: =IF(term>1,ROUND(SUM((L73*1.03)),0),0) -> 0 | P73: =IF(term>2,ROUND(SUM((N73*1.03)),0),0) -> 0 | R73: =IF(term>3,ROUND(SUM((P73*1.03)),0),0) -> 0 | T73: =IF(term>4,ROUND(SUM((R73*1.03)),0),0) -> 0
A74: =IF(B74=1,SUM($B$33:B73)+1,0) -> 0 | B74: =IF(L74=0,0,1) -> 0 | I74: 0 | K74: =+L74*Grad -> 0 | N74: =IF(term>1,ROUND(SUM((L74*1.03)),0),0) -> 0 | P74: =IF(term>2,ROUND(SUM((N74*1.03)),0),0) -> 0 | R74: =IF(term>3,ROUND(SUM((P74*1.03)),0),0) -> 0 | T74: =IF(term>4,ROUND(SUM((R74*1.03)),0),0) -> 0
A75: =IF(B75=1,SUM($B$33:B74)+1,0) -> 0 | B75: =IF(L75=0,0,1) -> 0 | I75: 0 | K75: =+L75*Grad -> 0 | N75: =IF(term>1,ROUND(SUM((L75*1.03)),0),0) -> 0 | P75: =IF(term>2,ROUND(SUM((N75*1.03)),0),0) -> 0 | R75: =IF(term>3,ROUND(SUM((P75*1.03)),0),0) -> 0 | T75: =IF(term>4,ROUND(SUM((R75*1.03)),0),0) -> 0
A76: =IF(B76=1,SUM($B$33:B75)+1,0) -> 0 | B76: =IF(L76=0,0,1) -> 0 | I76: 0 | K76: =+L76*Grad -> 0 | N76: =IF(term>1,ROUND(SUM((L76*1.03)),0),0) -> 0 | P76: =IF(term>2,ROUND(SUM((N76*1.03)),0),0) -> 0 | R76: =IF(term>3,ROUND(SUM((P76*1.03)),0),0) -> 0 | T76: =IF(term>4,ROUND(SUM((R76*1.03)),0),0) -> 0
A77: =IF(B77=1,SUM($B$33:B76)+1,0) -> 0 | B77: =IF(L77=0,0,1) -> 0 | I77: 0 | K77: =+L77*Grad -> 0 | N77: =IF(term>1,ROUND(SUM((L77*1.03)),0),0) -> 0 | P77: =IF(term>2,ROUND(SUM((N77*1.03)),0),0) -> 0 | R77: =IF(term>3,ROUND(SUM((P77*1.03)),0),0) -> 0 | T77: =IF(term>4,ROUND(SUM((R77*1.03)),0),0) -> 0
C78: Subtotals | L78: =SUM(L73:L77) -> 0 | N78: =SUM(N73:N77) -> 0 | P78: =SUM(P73:P77) -> 0 | R78: =SUM(R73:R77) -> 0 | T78: =SUM(T73:T77) -> 0
L79: =COUNTIF(L73:L77,">0") -> 0 | N79: =COUNTIF(N73:N77,">0") -> 0 | P79: =COUNTIF(P73:P77,">0") -> 0 | R79: =COUNTIF(R73:R77,">0") -> 0 | T79: =COUNTIF(T73:T77,">0") -> 0
C81: Undergraduate Students
C82: Name | G82: Hours | I82: $/Hour | L82: Year 1 | N82: Year 2 | P82: Year 3 | R82: Year 4 | T82: Year 5
G83: 0 | I83: 0 | K83: 0 | L83: =ROUND(G83*I83,0) -> 0 | N83: =IF(term>1,ROUND(SUM(L83+(L83*$G$13)),0),0) -> 0 | P83: =IF(term>2,ROUND(SUM(N83+(N83*$G$13)),0),0) -> 0 | R83: =IF(term>3,ROUND(SUM(P83+(P83*$G$13)),0),0) -> 0 | T83: =IF(term>4,ROUND(SUM(R83+(R83*$G$13)),0),0) -> 0
G84: 0 | I84: 0 | K84: 0 | L84: =ROUND(G84*I84,0) -> 0 | N84: =IF(term>1,ROUND(SUM(L84+(L84*$G$13)),0),0) -> 0 | P84: =IF(term>2,ROUND(SUM(N84+(N84*$G$13)),0),0) -> 0 | R84: =IF(term>3,ROUND(SUM(P84+(P84*$G$13)),0),0) -> 0 | T84: =IF(term>4,ROUND(SUM(R84+(R84*$G$13)),0),0) -> 0
G85: 0 | I85: 0 | K85: 0 | L85: 0 | N85: =IF(term>1,ROUND(SUM(L85+(L85*$G$13)),0),0) -> 0 | P85: =IF(term>2,ROUND(SUM(N85+(N85*$G$13)),0),0) -> 0 | R85: =IF(term>3,ROUND(SUM(P85+(P85*$G$13)),0),0) -> 0 | T85: =IF(term>4,ROUND(SUM(R85+(R85*$G$13)),0),0) -> 0
G86: 0 | I86: 0 | K86: 0 | L86: 0 | N86: =IF(term>1,ROUND(SUM(L86+(L86*$G$13)),0),0) -> 0 | P86: =IF(term>2,ROUND(SUM(N86+(N86*$G$13)),0),0) -> 0 | R86: =IF(term>3,ROUND(SUM(P86+(P86*$G$13)),0),0) -> 0 | T86: =IF(term>4,ROUND(SUM(R86+(R86*$G$13)),0),0) -> 0
G87: 0 | I87: 0 | K87: 0 | L87: 0 | N87: =IF(term>1,ROUND(SUM(L87+(L87*$G$13)),0),0) -> 0 | P87: =IF(term>2,ROUND(SUM(N87+(N87*$G$13)),0),0) -> 0 | R87: =IF(term>3,ROUND(SUM(P87+(P87*$G$13)),0),0) -> 0 | T87: =IF(term>4,ROUND(SUM(R87+(R87*$G$13)),0),0) -> 0
A88: =IF(B88=1,SUM($B$33:B87)+1,0) -> 0 | B88: =IF(L88=0,0,1) -> 0 | C88: Undergraduate Students | L88: =SUM(L83:L87) -> 0 | N88: 0 | P88: 0 | R88: 0 | T88: 0
C90: Subtotal Personnel | L90: =SUM(L39+L48+L88+L78+L68+L58) -> 0 | N90: =SUM(N39+N48+N88+N78+N68+N58) -> 0 | P90: =SUM(P39+P48+P88+P78+P68+P58) -> 0 | R90: =SUM(R39+R48+R88+R78+R68+R58) -> 0 | T90: =SUM(T39+T48+T88+T78+T68+T58) -> 0
C92: Faculty Benefits | L92: =ROUND(+L39*Faculty,0) -> 0 | N92: =ROUND(+N39*Faculty,0) -> 0 | P92: =ROUND(+P39*Faculty,0) -> 0 | R92: =ROUND(+R39*Faculty,0) -> 0 | T92: =ROUND(+T39*Faculty,0) -> 0
C93: P & S Benefits | L93: =ROUND(+L48*Professional,0) -> 0 | N93: =ROUND(+N48*Professional,0) -> 0 | P93: 0 | R93: 0 | T93: 0
C94: Merit Benefits | L94: =ROUND(+L58*Merit,0) -> 0 | N94: =ROUND(+N58*Merit,0) -> 0 | P94: 0 | R94: 0 | T94: 0
C95: Postdoctoral Benefits | L95: =ROUND(+L68*PostDoc,0) -> 0 | N95: =ROUND(+N68*PostDoc,0) -> 0 | P95: 0 | R95: 0 | T95: 0
C96: Graduate Assistant Benefits | L96: =ROUND(+L78*Grad,0) -> 0 | N96: =ROUND(+N78*Grad,0) -> 0 | P96: =ROUND(+P78*Grad,0) -> 0 | R96: =ROUND(+R78*Grad,0) -> 0 | T96: =ROUND(+T78*Grad,0) -> 0
C97: Undergraduate | L97: =ROUND(+L88*ug,0) -> 0 | N97: =ROUND(+N88*ug,0) -> 0 | P97: =ROUND(+P88*ug,0) -> 0 | R97: =ROUND(+R88*ug,0) -> 0 | T97: =ROUND(+T88*ug,0) -> 0
C98: Subtotal Fringe | L98: =SUM(L92:L97) -> 0 | N98: =SUM(N92:N97) -> 0 | P98: =SUM(P92:P97) -> 0 | R98: =SUM(R92:R97) -> 0 | T98: =SUM(T92:T97) -> 0
C100: Total Personnel | L100: =L90+L98 -> 0 | N100: =N90+N98 -> 0 | P100: =P90+P98 -> 0 | R100: =R90+R98 -> 0 | T100: =T90+T98 -> 0
C103: Consultants
C104: (Names)
L105: 0 | N105: =IF(term>1,ROUND(SUM(L105+(L105*$G$12)),0),0) -> 0 | P105: =IF(term>2,ROUND(SUM(N105+(N105*$G$12)),0),0) -> 0 | R105: =IF(term>3,ROUND(SUM(P105+(P105*$G$12)),0),0) -> 0 | T105: =IF(term>4,ROUND(SUM(R105+(R105*$G$12)),0),0) -> 0
L106: 0 | N106: =IF(term>1,ROUND(SUM(L106+(L106*$G$12)),0),0) -> 0 | P106: =IF(term>2,ROUND(SUM(N106+(N106*$G$12)),0),0) -> 0 | R106: =IF(term>3,ROUND(SUM(P106+(P106*$G$12)),0),0) -> 0 | T106: =IF(term>4,ROUND(SUM(R106+(R106*$G$12)),0),0) -> 0
L107: 0 | N107: =IF(term>1,ROUND(SUM(L107+(L107*$G$12)),0),0) -> 0 | P107: =IF(term>2,ROUND(SUM(N107+(N107*$G$12)),0),0) -> 0 | R107: =IF(term>3,ROUND(SUM(P107+(P107*$G$12)),0),0) -> 0 | T107: =IF(term>4,ROUND(SUM(R107+(R107*$G$12)),0),0) -> 0
C108: Subtotals | L108: =SUM(L105:L107) -> 0 | N108: =SUM(N105:N107) -> 0 | P108: =SUM(P105:P107) -> 0 | R108: =SUM(R105:R107) -> 0 | T108: =SUM(T105:T107) -> 0
C111: Equipment
C112: (Itemize)
L113: 0 | N113: 0 | P113: 0 | R113: 0 | T113: 0
L114: 0 | N114: 0 | P114: 0 | R114: 0 | T114: 0
L115: 0 | N115: 0 | P115: 0 | R115: 0 | T115: 0
L116: 0 | N116: 0 | P116: 0 | R116: 0 | T116: 0
C117: Subtotals | L117: =SUM(L113:L116) -> 0 | N117: =SUM(N113:N116) -> 0 | P117: =SUM(P113:P116) -> 0 | R117: =SUM(R113:R116) -> 0 | T117: =SUM(T113:T116) -> 0
C120: Supplies
C121: (Itemize)
L122: 0 | N122: 0 | P122: =IF(term>2,ROUND(SUM(N122+(N122*$G$12)),0),0) -> 0 | R122: =IF(term>3,ROUND(SUM(P122+(P122*$G$12)),0),0) -> 0 | T122: =IF(term>4,ROUND(SUM(R122+(R122*$G$12)),0),0) -> 0
L123: 0 | N123: =IF(term>1,ROUND(SUM(L123+(L123*$G$12)),0),0) -> 0 | P123: 0 | R123: 0 | T123: 0
L124: 0 | N124: 0 | P124: 0 | R124: 0 | T124: 0
L125: 0 | N125: 0 | P125: 0 | R125: 0 | T125: 0
L126: 0 | N126: 0 | P126: 0 | R126: 0 | T126: 0
L127: 0 | N127: 0 | P127: 0 | R127: 0 | T127: 0
L128: 0 | N128: 0 | P128: 0 | R128: 0 | T128: 0
L129: 0 | N129: 0 | P129: 0 | R129: 0 | T129: 0
L130: 0 | N130: 0 | P130: 0 | R130: 0 | T130: 0
L131: 0 | N131: 0 | P131: 0 | R131: 0 | T131: 0
L132: 0 | N132: 0 | P132: 0 | R132: 0 | T132: 0
L133: 0 | N133: 0 | P133: 0 | R133: 0 | T133: 0
C134: Subtotals | L134: =SUM(L122:L133) -> 0 | N134: =SUM(N122:N133) -> 0 | P134: =SUM(P122:P133) -> 0 | R134: =SUM(R122:R133) -> 0 | T134: =SUM(T122:T133) -> 0
C137: Patient Care
C138: Inpatient | L138: 0 | N138: =IF(term>1,ROUND(SUM(L138+(L138*$G$12)),0),0) -> 0 | P138: =IF(term>2,ROUND(SUM(N138+(N138*$G$12)),0),0) -> 0 | R138: =IF(term>3,ROUND(SUM(P138+(P138*$G$12)),0),0) -> 0 | T138: =IF(term>4,ROUND(SUM(R138+(R138*$G$12)),0),0) -> 0
C139: Outpatient | L139: 0 | N139: =IF(term>1,ROUND(SUM(L139+(L139*$G$12)),0),0) -> 0 | P139: =IF(term>2,ROUND(SUM(N139+(N139*$G$12)),0),0) -> 0 | R139: =IF(term>3,ROUND(SUM(P139+(P139*$G$12)),0),0) -> 0 | T139: =IF(term>4,ROUND(SUM(R139+(R139*$G$12)),0),0) -> 0
C140: Subtotals | L140: =SUM(L138:L139) -> 0 | N140: =SUM(N138:N139) -> 0 | P140: =SUM(P138:P139) -> 0 | R140: =SUM(R138:R139) -> 0 | T140: =SUM(T138:T139) -> 0
C143: Alterations/Renovations
C144: (Itemize)
L145: 0 | N145: =IF(term>1,ROUND(SUM(L145+(L145*$G$12)),0),0) -> 0 | P145: =IF(term>2,ROUND(SUM(N145+(N145*$G$12)),0),0) -> 0 | R145: =IF(term>3,ROUND(SUM(P145+(P145*$G$12)),0),0) -> 0 | T145: =IF(term>4,ROUND(SUM(R145+(R145*$G$12)),0),0) -> 0
L146: 0 | N146: =IF(term>1,ROUND(SUM(L146+(L146*$G$12)),0),0) -> 0 | P146: =IF(term>2,ROUND(SUM(N146+(N146*$G$12)),0),0) -> 0 | R146: =IF(term>3,ROUND(SUM(P146+(P146*$G$12)),0),0) -> 0 | T146: =IF(term>4,ROUND(SUM(R146+(R146*$G$12)),0),0) -> 0
L147: 0 | N147: =IF(term>1,ROUND(SUM(L147+(L147*$G$12)),0),0) -> 0 | P147: =IF(term>2,ROUND(SUM(N147+(N147*$G$12)),0),0) -> 0 | R147: =IF(term>3,ROUND(SUM(P147+(P147*$G$12)),0),0) -> 0 | T147: =IF(term>4,ROUND(SUM(R147+(R147*$G$12)),0),0) -> 0
C148: Subtotals | L148: =SUM(L145:L147) -> 0 | N148: =SUM(N145:N147) -> 0 | P148: =SUM(P145:P147) -> 0 | R148: =SUM(R145:R147) -> 0 | T148: =SUM(T145:T147) -> 0
C151: Travel
C152: (Itemize)
L153: 0 | N153: =IF(term>1,ROUND(SUM(L153+(L153*$G$12)),0),0) -> 0 | P153: =IF(term>2,ROUND(SUM(N153+(N153*$G$12)),0),0) -> 0 | R153: =IF(term>3,ROUND(SUM(P153+(P153*$G$12)),0),0) -> 0 | T153: =IF(term>4,ROUND(SUM(R153+(R153*$G$12)),0),0) -> 0
L154: 0 | N154: =IF(term>1,ROUND(SUM(L154+(L154*$G$12)),0),0) -> 0 | P154: =IF(term>2,ROUND(SUM(N154+(N154*$G$12)),0),0) -> 0 | R154: =IF(term>3,ROUND(SUM(P154+(P154*$G$12)),0),0) -> 0 | T154: =IF(term>4,ROUND(SUM(R154+(R154*$G$12)),0),0) -> 0
L155: 0 | N155: =IF(term>1,ROUND(SUM(L155+(L155*$G$12)),0),0) -> 0 | P155: =IF(term>2,ROUND(SUM(N155+(N155*$G$12)),0),0) -> 0 | R155: =IF(term>3,ROUND(SUM(P155+(P155*$G$12)),0),0) -> 0 | T155: =IF(term>4,ROUND(SUM(R155+(R155*$G$12)),0),0) -> 0
C156: Subtotals | L156: =SUM(L153:L155) -> 0 | N156: =SUM(N153:N155) -> 0 | P156: =SUM(P153:P155) -> 0 | R156: =SUM(R153:R155) -> 0 | T156: =SUM(T153:T155) -> 0
C159: Other
C160: (Itemize) | L160: 0 | N160: =IF(term>1,ROUND(SUM(L160+(L160*$G$12)),0),0) -> 0 | P160: =IF(term>2,ROUND(SUM(N160+(N160*$G$12)),0),0) -> 0 | R160: =IF(term>3,ROUND(SUM(P160+(P160*$G$12)),0),0) -> 0 | T160: =IF(term>4,ROUND(SUM(R160+(R160*$G$12)),0),0) -> 0
L161: 0 | N161: 0 | P161: =IF(term>2,ROUND(SUM(N161+(N161*$G$12)),0),0) -> 0 | R161: =IF(term>3,ROUND(SUM(P161+(P161*$G$12)),0),0) -> 0 | T161: =IF(term>4,ROUND(SUM(R161+(R161*$G$12)),0),0) -> 0
L162: 0 | N162: 0 | P162: 0 | R162: 0 | T162: 0
L163: 0 | N163: 0 | P163: 0 | R163: 0 | T163: 0
L164: 0 | N164: 0 | P164: 0 | R164: 0 | T164: 0
L165: 0 | N165: 0 | P165: 0 | R165: 0 | T165: 0
L166: 0 | N166: 0 | P166: 0 | R166: 0 | T166: 0
C168: Tuition | G168: (Non-Engineering) | L168: =Tuition!K6 -> 0 | N168: =Tuition!M6 -> 0 | P168: =Tuition!O6 -> 0 | R168: =Tuition!Q6 -> 0 | T168: =Tuition!S6 -> 0 | V168: =SUM(L168:T168) -> 0 | X168: Total Tuition - Engineering
C169: Tuition | G169: (Engineering) | L169: =Tuition!K26 -> 0 | N169: =Tuition!M26 -> 0 | P169: =Tuition!O26 -> 0 | R169: =Tuition!Q26 -> 0 | T169: =Tuition!S26 -> 0 | V169: =SUM(L169:T169) -> 0 | X169: Total Tuition - Non-Engineering
C170: Subtotals | L170: =SUM(L160:L169) -> 0 | N170: =SUM(N160:N169) -> 0 | P170: =SUM(P160:P169) -> 0 | R170: =SUM(R160:R169) -> 0 | T170: =SUM(T160:T169) -> 0
C172: Subtotal Direct Cost at ISU | L172: =SUM(L100+L108+L117+L134+L140+L148+L156+L170) -> 0 | N172: =SUM(N100+N108+N117+N134+N140+N148+N156+N170) -> 0 | P172: =SUM(P100+P108+P117+P134+P140+P148+P156+P170) -> 0 | R172: =SUM(R100+R108+R117+R134+R140+R148+R156+R170) -> 0 | T172: =SUM(T100+T108+T117+T134+T140+T148+T156+T170) -> 0 | V172: =SUM(L172:T172) -> 0
L173: =SUM(L100+L108+L134+L156+L170-L168-L169) -> 0 | N173: =SUM(N100+N108+N134+N156+N170-N168-N169) -> 0 | P173: 0 | R173: 0 | T173: 0
C175: Subawards | AF175: Sub to IDC | AH175: Not Sub to IDC
C176: Subawardee #1 | AF176: =IF(SUM(L177:T178)>25000,25000,SUM(L177:T178)) -> 0 | AH176: =SUM(L177:T178)-AF176 -> 0
I177: Direct | L177: 0 | N177: 0 | P177: 0 | R177: 0 | T177: 0
I178: F&A (Indirect) | L178: 0 | N178: 0 | P178: 0 | R178: 0 | T178: 0
L179: =IF(L177+L178>=25000,"25,000",L177+L178) -> 0 | N179: =IF(N177+N178+L179>=25000, 25000-L179, N177+N178) -> 0 | P179: =IF(P177+P178+N179+L179>=25000, 25000-(N179+L179), P177+P178) -> 0 | R179: =IF(R177+R178+P179+N179+L179>=25000, 25000-(P179+N179+L179), R177+R178) -> 0 | T179: =IF(T177+T178+R179+P179+N179+L179>=25000, 25000-(R179+P179+N179+L179), T177+T178) -> 0
C180: Subawardee #2 | AF180: =IF(SUM(L181:T182)>25000,25000,SUM(L181:T182)) -> 0 | AH180: =SUM(L181:T182)-AF180 -> 0
I181: Direct | L181: 0 | N181: 0 | P181: 0 | R181: 0 | T181: 0
I182: F&A (Indirect) | L182: 0 | N182: 0 | P182: 0 | R182: 0 | T182: 0
L183: =IF(L181+L182>=25000,"25,000",L181+L182) -> 0 | N183: =IF(N181+N182+L183>=25000, 25000-L183, N181+N182) -> 0 | P183: =IF(P181+P182+N183+L183>=25000, 25000-(N183+L183), P181+P182) -> 0 | R183: =IF(R181+R182+P183+N183+L183>=25000, 25000-(P183+N183+L183), R181+R182) -> 0 | T183: =IF(T181+T182+R183+P183+N183+L183>=25000, 25000-(R183+P183+N183+L183), T181+T182) -> 0
C184: Subawardee #3 | AF184: =IF(SUM(L185:T186)>25000,25000,SUM(L185:T186)) -> 0 | AH184: =SUM(L185:T186)-AF184 -> 0
I185: Direct | L185: 0 | N185: 0 | P185: 0 | R185: 0 | T185: 0
I186: F&A (Indirect) | L186: 0 | N186: 0 | P186: 0 | R186: 0 | T186: 0
L187: =IF(L185+L186>=25000,"25,000",L185+L186) -> 0 | N187: =IF(N185+N186+L187>=25000, 25000-L187, N185+N186) -> 0 | P187: =IF(P185+P186+N187+L187>=25000, 25000-(N187+L187), P185+P186) -> 0 | R187: =IF(R185+R186+P187+N187+L187>=25000, 25000-(P187+N187+L187), R185+R186) -> 0 | T187: =IF(T185+T186+R187+P187+N187+L187>=25000, 25000-(R187+P187+N187+L187), T185+T186) -> 0
C188: Subawardee #4 | AF188: =IF(SUM(L189:T190)>25000,25000,SUM(L189:T190)) -> 0 | AH188: =SUM(L189:T190)-AF188 -> 0
I189: Direct | L189: 0 | N189: 0 | P189: 0 | R189: 0 | T189: 0
I190: F&A (Indirect) | L190: 0 | N190: 0 | P190: 0 | R190: 0 | T190: 0
L191: =IF(L189+L190>=25000,"25,000",L189+L190) -> 0 | N191: =IF(N189+N190+L191>=25000, 25000-L191, N189+N190) -> 0 | P191: =IF(P189+P190+N191+L191>=25000, 25000-(N191+L191), P189+P190) -> 0 | R191: =IF(R189+R190+P191+N191+L191>=25000, 25000-(P191+N191+L191), R189+R190) -> 0 | T191: =IF(T189+T190+R191+P191+N191+L191>=25000, 25000-(R191+P191+N191+L191), T189+T190) -> 0 | AF191: =SUM(AF176:AF189) -> 0 | AH191: =SUM(AH176:AH188) -> 0
C193: Total Direct Subawards | L193: =SUM(L177+L181+L185+L189) -> 0 | N193: =SUM(N177+N181+N185+N189) -> 0 | P193: =SUM(P177+P181+P185+P189) -> 0 | R193: =SUM(R177+R181+R185+R189) -> 0 | T193: =SUM(T177+T181+T185+T189) -> 0 | V193: =SUM(L193:T193) -> 0
C194: Total Indirect Subawards | L194: =SUM(L178+L182+L186+L190) -> 0 | N194: =SUM(N178+N182+N186+N190) -> 0 | P194: =SUM(P178+P182+P186+P190) -> 0 | R194: =SUM(R178+R182+R186+R190) -> 0 | T194: =SUM(T178+T182+T186+T190) -> 0 | V194: =SUM(L194:T194) -> 0
C198: Total Direct | L198: =SUM(L172+L193+L194) -> 0 | N198: =SUM(N172+N193+N194) -> 0 | P198: =SUM(P172+P193+P194) -> 0 | R198: =SUM(R172+R193+R194) -> 0 | T198: =SUM(T172+T193+T194) -> 0
C199: F&A Base | L199: =IF(L179>25000,"25000",L179)+IF(L183>25000,"25000",L183)+IF(L187>25000,"25000",L187)+IF(L191>25000,"25000",L191)+L173 -> 0 | N199: =IF(N179>25000,"25000",N179)+IF(N183>25000,"25000",N183)+IF(N187>25000,"25000",N187)+IF(N191>25000,"25000",N191)+N173 -> 0 | P199: =IF(P179>25000,"25000",P179)+IF(P183>25000,"25000",P183)+IF(P187>25000,"25000",P187)+IF(P191>25000,"25000",P191)+P173 -> 0 | R199: =IF(R179>25000,"25000",R179)+IF(R183>25000,"25000",R183)+IF(R187>25000,"25000",R187)+IF(R191>25000,"25000",R191)+R173 -> 0 | T199: =IF(T179>25000,"25000",T179)+IF(T183>25000,"25000",T183)+IF(T187>25000,"25000",T187)+IF(T191>25000,"25000",T191)+T173 -> 0
C200: Total F&A | L200: =ROUND(+L199*IDC,0) -> 0 | N200: =ROUND(+N199*$G$20,0) -> 0 | P200: =ROUND(+P199*$G$20,0) -> 0 | R200: =ROUND(+R199*$G$20,0) -> 0 | T200: =ROUND(+T199*$G$20,0) -> 0
C201: Total Costs | L201: =SUM(L198+L200) -> 0 | N201: =SUM(N198+N200) -> 0 | P201: =SUM(P198+P200) -> 0 | R201: =SUM(R198+R200) -> 0 | T201: =SUM(T198+T200) -> 0
E202: This is your Modular Amount > > >
L203: =+L172+L193 -> 0 | N203: =+N172+N193 -> 0 | P203: =+P172+P193 -> 0 | R203: =+R172+R193 -> 0 | T203: =+T172+T193 -> 0
C204: =term -> 1 | D204: -Year Totals
C205: Project Direct total | E205: =L198+N198+P198+R198+T198 -> 0
C206: Project F&A base | E206: =SUM(L199+N199+P199+R199+T199) -> 0
C207: Project F&A total | E207: =SUM(L200+N200+P200+R200+T200) -> 0
C208: Project Total Cost | E208: =(E205+E207) -> 0

Sheet Mod Budget Form
B2: Principal Investigator/Program Director (Last, First, Middle): | I2: =+'Base Budget'!C33 -> PI name
A4: BUDGET JUSTIFICATION PAGE
A5: MODULAR RESEARCH GRANT APPLICATION
B7: Initial Period | D7: 2nd | F7: 3rd | H7: 4th | J7: 5th | L7: Sum Total (For Entire Project Period)
A8: DC less Consortium F&A | B8: =+'Base Budget'!L172+'Base Budget'!L193 -> 0 | D8: =+'Base Budget'!N172+'Base Budget'!N193 -> 0 | F8: =+'Base Budget'!P172+'Base Budget'!P193 -> 0 | H8: =+'Base Budget'!R172+'Base Budget'!R193 -> 0 | J8: =+'Base Budget'!T172+'Base Budget'!T193 -> 0 | L8: =SUM(B8:K8) -> 0
B9: (Item 7a, Face Page) | L9: (Item 8a, Face Page)
A10: Consortium F&A | B10: =+'Base Budget'!L194 -> 0 | D10: =+'Base Budget'!N194 -> 0 | F10: =+'Base Budget'!P194 -> 0 | H10: =+'Base Budget'!R194 -> 0 | J10: =+'Base Budget'!T194 -> 0 | L10: =SUM(B10:K10) -> 0
A11: Total Direct Costs | B11: =SUM(B8:C10) -> 0 | D11: =SUM(D8:E10) -> 0 | F11: =SUM(F8:G10) -> 0 | H11: =SUM(H8:I10) -> 0 | J11: =SUM(J8:K10) -> 0 | L11: =SUM(B11:K11) -> 0
A13: Personnel
A35: Consortium
A51: Fixed Fee (SBIR/STTR Only)
A57: PHS 398 (Rev. 04/06) | F57: Page | I57: Modular Budget Format Page

Sheet Form Page 4
A2: ::
E3: Principal Investigator/Program Director (Last,First, Middle): | K3: =+'Base Budget'!C33 -> PI name
E4: DETAILED BUDGET FOR INITIAL BUDGET PERIOD | K4: FROM | L4: THROUGH
F5: DIRECT COSTS ONLY
A7: PERSONNEL (Applicant organization only)
A8: Use Cal, Acad, or Summer to Enter Months Devoted to Project
A9: Enter Dollar Amounts Requested (omit cents) for Salary Requested and Fringe Benefits
F10: ROLE ON | G10: Cal. | H10: Acad. | I10: Sum. | J10: INST.BASE | K10: SALARY | L10: FRINGE
D11: NAME | F11: PROJECT | G11: Months | H11: Months | I11: Months | K11: REQUESTED | L11: BENEFITS | M11: TOTALS
F12: Principal Investigator
A13: =VLOOKUP(1,'Base Budget'!$A$33:C88,3,FALSE) ->  | K13: =VLOOKUP(1,'Base Budget'!$A$33:$L$88,10,FALSE) ->  | L13: =VLOOKUP(1,'Base Budget'!$A$33:$L$88,9,FALSE) ->  | M13: =L13+K13 -> 
A15: =VLOOKUP(2,'Base Budget'!A33:C88,3,FALSE) ->  | K15: =VLOOKUP(2,'Base Budget'!$A$33:$L$88,10,FALSE) ->  | L15: =VLOOKUP(2,'Base Budget'!$A$33:$L$88,9,FALSE) ->  | M15: =L15+K15 -> 
A17: =VLOOKUP(3,'Base Budget'!A33:C88,3,FALSE) ->  | K17: =VLOOKUP(3,'Base Budget'!$A$33:$L$88,10,FALSE) ->  | L17: =VLOOKUP(3,'Base Budget'!$A$33:$L$88,9,FALSE) ->  | M17: =L17+K17 -> 
A19: =VLOOKUP(4,'Base Budget'!A33:C88,3,FALSE) ->  | K19: =VLOOKUP(4,'Base Budget'!$A$33:$L$88,10,FALSE) ->  | L19: =VLOOKUP(4,'Base Budget'!$A$33:$L$88,9,FALSE) ->  | M19: =L19+K19 -> 
A21: =VLOOKUP(5,'Base Budget'!A33:C88,3,FALSE) ->  | K21: =VLOOKUP(5,'Base Budget'!$A$33:$L$88,10,FALSE) ->  | L21: =VLOOKUP(5,'Base Budget'!$A$33:$L$88,9,FALSE) ->  | M21: =L21+K21 -> 
A23: =VLOOKUP(6,'Base Budget'!A33:C88,3,FALSE) ->  | K23: =VLOOKUP(6,'Base Budget'!$A$33:$L$88,10,FALSE) ->  | L23: =VLOOKUP(6,'Base Budget'!$A$33:$L$88,9,FALSE) ->  | M23: =L23+K23 -> 
A25: =VLOOKUP(7,'Base Budget'!A33:C88,3,FALSE) ->  | K25: =VLOOKUP(7,'Base Budget'!$A$33:$L$88,10,FALSE) ->  | L25: =VLOOKUP(7,'Base Budget'!$A$33:$L$88,9,FALSE) ->  | M25: =L25+K25 -> 
A27: =VLOOKUP(8,'Base Budget'!A33:C88,3,FALSE) ->  | K27: =VLOOKUP(8,'Base Budget'!$A$33:$L$88,10,FALSE) ->  | L27: =VLOOKUP(8,'Base Budget'!$A$33:$L$88,9,FALSE) ->  | M27: =L27+K27 -> 
A29: =VLOOKUP(9,'Base Budget'!A33:C88,3,FALSE) ->  | K29: =VLOOKUP(9,'Base Budget'!$A$33:$L$88,10,FALSE) ->  | L29: =VLOOKUP(9,'Base Budget'!$A$33:$L$88,9,FALSE) ->  | M29: =L29+K29 -> 
G31: SUBTOTALS | K31: =SUMIF(K13:K29,">1",K13:K29) -> 0 | L31: =SUMIF(L13:L29,">1",L13:L29) -> 0 | M31: =SUMIF(M13:M29,">1",M13:M29) -> 0
A32: CONSULTANT COSTS
M34: =+'Base Budget'!L108 -> 0
A35: EQUIPMENT (Itemize)
M37: =+'Base Budget'!L117 -> 0
A38: SUPPLIES (Itemize by category)
M44: =+'Base Budget'!L134 -> 0
A45: TRAVEL
M46: =+'Base Budget'!L156 -> 0
A47: INPATIENT PATIENT CARE COSTS | M47: =+'Base Budget'!L138 -> 0
A48: OUTPATIENT PATIENT CARE COSTS | M48: =+'Base Budget'!L139 -> 0
A49: ALTERATIONS AND RENOVATIONS (Itemize by category)
M50: =+'Base Budget'!L148 -> 0
A51: OTHER EXPENSES (itemize by category)
M58: =+'Base Budget'!L170 -> 0
A59: CONSORTIUM/CONTRACTUAL COSTS | H59: DIRECT COSTS | L59: =+'Base Budget'!L193 -> 0
A60: SUBTOTAL DIRECT COSTS FOR INITIAL BUDGET PERIOD (Item 7a, Face Page) | L60: =SUM(M30:M58)+L59 -> 0
A61: CONSORTIUM/CONTRACTUAL COSTS | H61: FACILITIES AND ADMINISTRATIVE COSTS | L61: =+'Base Budget'!L194 -> 0
A62: TOTAL DIRECT COSTS FOR INITIAL BUDGET PERIOD | L62: =+L60+L61 -> 0
A63: SBIR/STTR Only: FEE REQUESTED
A64: PHS 398 (Rev. 06/09) | G64: Page
M65: Form Page 4

Sheet Form Page 5
A1: ::
B2: Principal Investigator/Program Director (Last,First, Middle): | I2: =+'Base Budget'!C33 -> PI name
F3: BUDGET FOR ENTIRE PROPOSED PROJECT PERIOD
G4: DIRECT COSTS ONLY
F5: INITIAL BUDGET | I5: 2nd ADDITIONAL | J5: 3rd ADDITIONAL | K5: 4th ADDITIONAL | L5: 5th ADDITIONAL
B6: BUDGET CATEGORY | F6: PERIOD | I6: YEAR OF SUPPORT | J6: YEAR OF SUPPORT | K6: YEAR OF SUPPORT | L6: YEAR OF SUPPORT
C7: TOTALS | F7: (from Form Page 4) | I7: REQUESTED | J7: REQUESTED | K7: REQUESTED | L7: REQUESTED
A8: PERSONNEL: Salary and fringe
A9: benefits. Applicant organization | F9: =+'Base Budget'!L100 -> 0 | I9: =+'Base Budget'!N100 -> 0 | J9: =+'Base Budget'!P100 -> 0 | K9: =+'Base Budget'!R100 -> 0 | L9: =+'Base Budget'!T100 -> 0
A10: only.
A12: CONSULTANT COSTS | F12: =+'Base Budget'!L108 -> 0 | I12: =+'Base Budget'!N108 -> 0 | J12: =+'Base Budget'!P108 -> 0 | K12: =+'Base Budget'!R108 -> 0 | L12: =+'Base Budget'!T108 -> 0
A15: EQUIPMENT | F15: =+'Base Budget'!L117 -> 0 | I15: =+'Base Budget'!N117 -> 0 | J15: =+'Base Budget'!P117 -> 0 | K15: =+'Base Budget'!R117 -> 0 | L15: =+'Base Budget'!T117 -> 0
A18: SUPPLIES | F18: =+'Base Budget'!L134 -> 0 | I18: =+'Base Budget'!N134 -> 0 | J18: =+'Base Budget'!P134 -> 0 | K18: =+'Base Budget'!R134 -> 0 | L18: =+'Base Budget'!T134 -> 0
A21: TRAVEL | F21: =+'Base Budget'!L156 -> 0 | I21: =+'Base Budget'!N156 -> 0 | J21: =+'Base Budget'!P156 -> 0 | K21: =+'Base Budget'!R156 -> 0 | L21: =+'Base Budget'!T156 -> 0
A24: INPATIENT CARE COSTS | F24: =+'Base Budget'!L138 -> 0 | I24: =+'Base Budget'!N138 -> 0 | J24: =+'Base Budget'!P138 -> 0 | K24: =+'Base Budget'!R138 -> 0 | L24: =+'Base Budget'!T138 -> 0
A26: OUTPATIENT CARE COSTS | F26: =+'Base Budget'!L139 -> 0 | I26: =+'Base Budget'!N139 -> 0 | J26: =+'Base Budget'!P139 -> 0 | K26: =+'Base Budget'!R139 -> 0 | L26: =+'Base Budget'!T139 -> 0
A27: ALTERATIONS AND
A28: RENOVATIONS | F28: =+'Base Budget'!L148 -> 0 | I28: =+'Base Budget'!N148 -> 0 | J28: =+'Base Budget'!P148 -> 0 | K28: =+'Base Budget'!R148 -> 0 | L28: =+'Base Budget'!T148 -> 0
A30: OTHER EXPENSES | F30: =+'Base Budget'!L170 -> 0 | I30: =+'Base Budget'!N170 -> 0 | J30: =+'Base Budget'!P170 -> 0 | K30: =+'Base Budget'!R170 -> 0 | L30: =+'Base Budget'!T170 -> 0
A32: DIRECT CONSORTIUM/
A33: CONTRACTUAL | F33: =+'Base Budget'!L193 -> 0 | I33: =+'Base Budget'!N193 -> 0 | J33: =+'Base Budget'!P193 -> 0 | K33: =+'Base Budget'!R193 -> 0 | L33: =+'Base Budget'!T193 -> 0
A34: COSTS
A36: SUBTOTAL DIRECT COSTS | F36: =SUM(F8:F34) -> 0 | I36: =SUM(I8:I34) -> 0 | J36: =SUM(J8:J34) -> 0 | K36: =SUM(K8:K34) -> 0 | L36: =SUM(L8:L34) -> 0
A37: (Sum - Item 8a, Face Page)
A38: F&A CONSORTIUM/
A39: CONTRACTUAL | F39: =+'Base Budget'!L194 -> 0 | I39: =+'Base Budget'!N194 -> 0 | J39: =+'Base Budget'!P194 -> 0 | K39: =+'Base Budget'!R194 -> 0 | L39: =+'Base Budget'!T194 -> 0
A40: COSTS
A42: TOTAL DIRECT COSTS | F42: =SUM(F35:F39) -> 0 | I42: =SUM(I35:I40) -> 0 | J42: =SUM(J35:J40) -> 0 | K42: =SUM(K35:K40) -> 0 | L42: =SUM(L35:L40) -> 0
A45: TOTAL DIRECT COSTS FOR ENTIRE PROPOSED PERIOD | K45: $ | L45: =SUM(F42:L42) -> 0
A47: JUSTIFICATION. Follow the budget justification instructions exactly. Use continuation pages as needed.
A59: PHS 398 (Rev. 06/09) | I59: Page | L59: Form Page 5

Sheet Checklist
G1: Program Director/Principal Investigator (Last, First, Middle): | J1: ='Base Budget'!C33 -> PI name
A2: CHECKLIST
A3: TYPE OF APPLICATION (Check all that apply.)
B4: NEW application. (This application is being submitted to the PHS for the first time.)
B5: RESUBMISSION of application number:
B6: (This application replaces a prior unfunded version of a new, renewal, or revision application.)
B7: RENEWAL of grant number:
B8: (This application is to extend a funded grant beyond its current project period.)
B10: REVISION to grant number:
B11: (This application is for additional funds to supplement a currently funded grant.)
B12: CHANGE of program director/principal investigator.
B13: Name of former program director/principal investigator:
B14: CHANGE of Grantee Institution. Name of former institution:
B15: FOREIGN application | D15: Domestic Grant with foreign involvement | I15: List Country(ies) Involved:
A16: INVENTIONS AND PATENTS (Renewal appl. only) | F16: No | G16: Yes
G17: If "Yes," | I17: Previously reported | O17: Not previously reported
A18: 1. PROGRAM INCOME (See instructions.)
A19: All applications must indicate whether program income is anticipated during the period(s) for which grant support is requested. If program income is
A20: anticipated, use the format below to reflect the amount and source(s).
A21: Budget Period | D21: Anticipated Amount | K21: Source(s)
B22: N/A | E22: N/A | K22: N/A
A26: 2. ASSURANCES/CERTIFICATIONS (See instructions.)
A27: In signing the application Face Page, the authorized organizational representative agrees to comply with the policies, assurances and/or certifications
A28: listed in the application instructions when applicable. Descriptions of individual assurances/certifications are provided in Part III and listed in Part I, 4.1
A29: under item 14. If unable to certify compliance, where applicable, provide an explanation and place it after this page.
A30: 3. FACILITIES AND ADMINISTRATIVE COSTS (F&A)/ INDIRECT COSTS. See specific instructions.
A31: x | B31: DHHS Agreement dated: | E31: 2012-11-27 | J31: No Facilities And Administrative Costs Requested.
B32: DHHS Agreement being negotiated with | K32: Regional Office.
B33: No DHHS Agreement, but rate established with | K33: Date
A35: CALCULATION* (The entire grant application, including the Checklist, will be reproduced and provided to peer reviewers as confidential information.)
A36: a. Initial budget period: | E36: Amount of base $ | F36: 0 | H36: x Rate applied | J36: =+IDC -> 0.5 | L36: % = F&A costs | N36: $ | O36: 0
A37: b. 02 year | E37: Amount of base $ | F37: 0 | H37: x Rate applied | J37: =+IDC -> 0.5 | L37: % = F&A costs | N37: $ | O37: 0
A38: c. 03 year | E38: Amount of base $ | F38: 0 | H38: x Rate applied | J38: =+IDC -> 0.5 | L38: % = F&A costs | N38: $ | O38: 0
A39: d. 04 year | E39: Amount of base $ | F39: 0 | H39: x Rate applied | J39: =+IDC -> 0.5 | L39: % = F&A costs | N39: $ | O39: 0
A40: e. 05 year | E40: Amount of base $ | F40: 0 | H40: x Rate applied | J40: =+IDC -> 0.5 | L40: % = F&A costs | N40: $ | O40: 0
E41: Enter Rate above as a decimal (e.g., 0.25 for 25%, 0.495 | L41: TOTAL F&A Costs | N41: $ | O41: 0
A42: *Check appropriate box(es): | E42: for 49.5%
B43: Salary and wages base | E43: X | F43: Modified total direct cost base | K43: Other base (Explain)
B44: Off-site, other special rate, or more than one rate involved (Explain)
A45: Explanation (Attach separate sheet, if necessary.):
A50: 4. DISCLOSURE PERMISSION STATEMENT: If this application does not result in an award, is the Government permitted to disclose the title of
A51: your proposed project, and the name, address, telephone number and e-mail address of the official signing for the applicant organization, to
A52: organizations that may be interested in contacting you for further information (e.g., possible collaborations, investment)? | N52: Yes | O52: No
A53: PHS 398 (Rev. 6/09) | G53: Page | O53: Checklist Form Page

Sheet Tuition
C1: Tuition Costs | K1: Year 1 | M1: Year 2 | O1: Year 3 | Q1: Year 4 | S1: Year 5
K3: Funds Requested | M3: Funds Requested | O3: Funds Requested | Q3: Funds Requested | S3: Funds Requested
A6: 8 | C6: Graduate Student Tuition (NON-ENGINEERING) | G6: select 1/4-time/1/2-time > > | I6: 1/2-time | K6: =ROUND(IF(I6="1/2-time",K7,K8),0) -> 0 | M6: =ROUND(IF(I6="1/2-time",M7,M8),0) -> 0 | O6: =ROUND(IF(I6="1/2-time",O7,O8),0) -> 0 | Q6: =ROUND(IF(I6="1/2-time",Q7,Q8),0) -> 0 | S6: =ROUND(IF(I6="1/2-time",S7,S8),0) -> 0
A7: 8 | C7: Graduate Student Tuition | I7: Maximum | K7: =+C13*VLOOKUP(K13,$I$53:$Q$109,5,FALSE)+C15*VLOOKUP(K15,$I$53:$Q$109,5,FALSE)+C17*VLOOKUP(K17,$I$53:$Q$109,5,FALSE)+C19*VLOOKUP(K19,$I$53:$Q$109,9,FALSE)+C21*VLOOKUP(K21,$I$53:$Q$109,9,FALSE)+C23*VLOOKUP(K23,$I$53:$Q$109,9,FALSE) -> 0 | M7: =+E13*VLOOKUP(M13,$I$53:$Q$109,5,FALSE)+E15*VLOOKUP(M15,$I$53:$Q$109,5,FALSE)+E17*VLOOKUP(M17,$I$53:$Q$109,5,FALSE)+E19*VLOOKUP(M19,$I$53:$Q$109,9,FALSE)+E21*VLOOKUP(M21,$I$53:$Q$109,9,FALSE)+E23*VLOOKUP(M23,$I$53:$Q$109,9,FALSE) -> 0 | O7: =+F13*VLOOKUP(O13,$I$53:$Q$109,5,FALSE)+F15*VLOOKUP(O15,$I$53:$Q$109,5,FALSE)+F17*VLOOKUP(O17,$I$53:$Q$109,5,FALSE)+F19*VLOOKUP(O19,$I$53:$Q$109,9,FALSE)+F21*VLOOKUP(O21,$I$53:$Q$109,9,FALSE)+F23*VLOOKUP(O23,$I$53:$Q$109,9,FALSE) -> 0 | Q7: =+G13*VLOOKUP(Q13,$I$53:$Q$109,5,FALSE)+G15*VLOOKUP(Q15,$I$53:$Q$109,5,FALSE)+G17*VLOOKUP(Q17,$I$53:$Q$109,5,FALSE)+G19*VLOOKUP(Q19,$I$53:$Q$109,9,FALSE)+G21*VLOOKUP(Q21,$I$53:$Q$109,9,FALSE)+G23*VLOOKUP(Q23,$I$53:$Q$109,9,FALSE) -> 0 | S7: =+H13*VLOOKUP(S13,$I$53:$Q$109,5,FALSE)+H15*VLOOKUP(S15,$I$53:$Q$109,5,FALSE)+H17*VLOOKUP(S17,$I$53:$Q$109,5,FALSE)+H19*VLOOKUP(S19,$I$53:$Q$109,9,FALSE)+H21*VLOOKUP(S21,$I$53:$Q$109,9,FALSE)+H23*VLOOKUP(S23,$I$53:$Q$109,9,FALSE) -> 0
A8: 8 | C8: Graduate Student Tuition | I8: Minimum | K8: =+C13*VLOOKUP(K13,$I$53:$Q$109,3,FALSE)+C15*VLOOKUP(K15,$I$53:$Q$109,3,FALSE)+C17*VLOOKUP(K17,$I$53:$Q$109,3,FALSE)+C19*VLOOKUP(K19,$I$53:$Q$109,7,FALSE)+C21*VLOOKUP(K21,$I$53:$Q$109,7,FALSE)+C23*VLOOKUP(K23,$I$53:$Q$109,7,FALSE) -> 0 | M8: =+E13*VLOOKUP(M13,$I$53:$Q$109,3,FALSE)+E15*VLOOKUP(M15,$I$53:$Q$109,3,FALSE)+E17*VLOOKUP(M17,$I$53:$Q$109,3,FALSE)+E19*VLOOKUP(M19,$I$53:$Q$109,7,FALSE)+E21*VLOOKUP(M21,$I$53:$Q$109,7,FALSE)+E23*VLOOKUP(M23,$I$53:$Q$109,7,FALSE) -> 0 | O8: =+F13*VLOOKUP(O13,$I$53:$Q$109,3,FALSE)+F15*VLOOKUP(O15,$I$53:$Q$109,3,FALSE)+F17*VLOOKUP(O17,$I$53:$Q$109,3,FALSE)+F19*VLOOKUP(O19,$I$53:$Q$109,7,FALSE)+F21*VLOOKUP(O21,$I$53:$Q$109,7,FALSE)+F23*VLOOKUP(O23,$I$53:$Q$109,7,FALSE) -> 0 | Q8: =+G13*VLOOKUP(Q13,$I$53:$Q$84,3,FALSE)+G15*VLOOKUP(Q15,$I$53:$Q$84,3,FALSE)+G17*VLOOKUP(Q17,$I$53:$Q$84,3,FALSE)+G19*VLOOKUP(Q19,$I$53:$Q$84,7,FALSE)+G21*VLOOKUP(Q21,$I$53:$Q$84,7,FALSE)+G23*VLOOKUP(Q23,$I$53:$Q$84,7,FALSE) -> 0 | S8: =+H13*VLOOKUP(S13,$I$53:$Q$84,3,FALSE)+H15*VLOOKUP(S15,$I$53:$Q$84,3,FALSE)+H17*VLOOKUP(S17,$I$53:$Q$84,3,FALSE)+H19*VLOOKUP(S19,$I$53:$Q$84,7,FALSE)+H21*VLOOKUP(S21,$I$53:$Q$84,7,FALSE)+H23*VLOOKUP(S23,$I$53:$Q$84,7,FALSE) -> 0
C11: NON-Engineering Students Only
C12: Year 1 | E12: Year 2 | F12: Year 3 | G12: Year 4 | H12: Year 5
A13: Masters Students (enter no. of students per term) | I13: Summer | K13: Summer 2013 | M13: Summer 2014 | O13: Summer 2015 | Q13: Summer 2016 | S13: Summer 2017
E15: 0 | F15: 0 | G15: 0 | H15: 0 | I15: Fall | K15: Fall 2013 | M15: Fall 2014 | O15: Fall 2015 | Q15: Fall 2016 | S15: Fall 2017
E17: 0 | F17: 0 | G17: 0 | H17: 0 | I17: Spring | K17: Spring 2013 | M17: Spring 2014 | O17: Spring 2015 | Q17: Spring 2016 | S17: Spring 2017
A19: PhD Students (enter no. of students per term) | I19: Summer | K19: Summer 2013 | M19: Summer 2014 | O19: Summer 2015 | Q19: Summer 2016 | S19: Summer 2017
I21: Fall | K21: Fall 2013 | M21: Fall 2014 | O21: Fall 2015 | Q21: Fall 2016 | S21: Fall 2017
I23: Spring | K23: Spring 2013 | M23: Spring 2014 | O23: Spring 2015 | Q23: Spring 2016 | S23: Spring 2017
A26: 8 | C26: Graduate Student Tuition (ENGINEERING) | G26: select 1/4-time/1/2-time > > | I26: 1/2-time | K26: =ROUND(IF($I$26="1/2-time",K27,K28),0) -> 0 | M26: =ROUND(IF($I$26="1/2-time",M27,M28),0) -> 0 | O26: =ROUND(IF($I$26="1/2-time",O27,O28),0) -> 0 | Q26: =ROUND(IF($I$26="1/2-time",Q27,Q28),0) -> 0 | S26: =ROUND(IF($I$26="1/2-time",S27,S28),0) -> 0
A27: 8 | C27: Graduate Student Tuition | I27: Maximum | K27: =+C33*VLOOKUP(K33,$I$83:$Q$109,5,FALSE)+C35*VLOOKUP(K35,$I$83:$Q$109,5,FALSE)+C37*VLOOKUP(K37,$I$83:$Q$109,5,FALSE)+C39*VLOOKUP(K39,$I$83:$Q$109,9,FALSE)+C41*VLOOKUP(K41,$I$83:$Q$109,9,FALSE)+C43*VLOOKUP(K43,$I$83:$Q$109,9,FALSE) -> 0 | M27: =+E33*VLOOKUP(M33,$I$83:$Q$109,5,FALSE)+E35*VLOOKUP(M35,$I$83:$Q$109,5,FALSE)+E37*VLOOKUP(M37,$I$83:$Q$109,5,FALSE)+E39*VLOOKUP(M39,$I$83:$Q$109,9,FALSE)+E41*VLOOKUP(M41,$I$83:$Q$109,9,FALSE)+E43*VLOOKUP(M43,$I$83:$Q$109,9,FALSE) -> 0 | O27: =+F33*VLOOKUP(O33,$I$83:$Q$109,5,FALSE)+F35*VLOOKUP(O35,$I$83:$Q$109,5,FALSE)+F37*VLOOKUP(O37,$I$83:$Q$109,5,FALSE)+F39*VLOOKUP(O39,$I$83:$Q$109,9,FALSE)+F41*VLOOKUP(O41,$I$83:$Q$109,9,FALSE)+F43*VLOOKUP(O43,$I$83:$Q$109,9,FALSE) -> 0 | Q27: =+G33*VLOOKUP(Q33,$I$83:$Q$109,5,FALSE)+G35*VLOOKUP(Q35,$I$83:$Q$109,5,FALSE)+G37*VLOOKUP(Q37,$I$83:$Q$109,5,FALSE)+G39*VLOOKUP(Q39,$I$83:$Q$109,9,FALSE)+G41*VLOOKUP(Q41,$I$83:$Q$109,9,FALSE)+G43*VLOOKUP(Q43,$I$83:$Q$109,9,FALSE) -> 0 | S27: =+H33*VLOOKUP(S33,$I$83:$Q$109,5,FALSE)+H35*VLOOKUP(S35,$I$83:$Q$109,5,FALSE)+H37*VLOOKUP(S37,$I$83:$Q$109,5,FALSE)+H39*VLOOKUP(S39,$I$83:$Q$109,9,FALSE)+H41*VLOOKUP(S41,$I$83:$Q$109,9,FALSE)+H43*VLOOKUP(S43,$I$83:$Q$109,9,FALSE) -> 0
A28: 8 | C28: Graduate Student Tuition | I28: Minimum | K28: =+C33*VLOOKUP(K33,$I$83:$Q$109,3,FALSE)+C35*VLOOKUP(K35,$I$83:$Q$109,3,FALSE)+C37*VLOOKUP(K37,$I$83:$Q$109,3,FALSE)+C39*VLOOKUP(K39,$I$83:$Q$109,7,FALSE)+C41*VLOOKUP(K41,$I$83:$Q$109,7,FALSE)+C43*VLOOKUP(K43,$I$83:$Q$109,7,FALSE) -> 0 | M28: =+E33*VLOOKUP(M33,$I$83:$Q$109,3,FALSE)+E35*VLOOKUP(M35,$I$83:$Q$109,3,FALSE)+E37*VLOOKUP(M37,$I$83:$Q$109,3,FALSE)+E39*VLOOKUP(M39,$I$83:$Q$109,7,FALSE)+E41*VLOOKUP(M41,$I$83:$Q$109,7,FALSE)+E43*VLOOKUP(M43,$I$83:$Q$109,7,FALSE) -> 0 | O28: =+F33*VLOOKUP(O33,$I$83:$Q$109,3,FALSE)+F35*VLOOKUP(O35,$I$83:$Q$109,3,FALSE)+F37*VLOOKUP(O37,$I$83:$Q$109,3,FALSE)+F39*VLOOKUP(O39,$I$83:$Q$109,7,FALSE)+F41*VLOOKUP(O41,$I$83:$Q$109,7,FALSE)+F43*VLOOKUP(O43,$I$83:$Q$109,7,FALSE) -> 0 | Q28: =+G33*VLOOKUP(Q33,$I$83:$Q$109,3,FALSE)+G35*VLOOKUP(Q35,$I$83:$Q$109,3,FALSE)+G37*VLOOKUP(Q37,$I$83:$Q$109,3,FALSE)+G39*VLOOKUP(Q39,$I$83:$Q$109,7,FALSE)+G41*VLOOKUP(Q41,$I$83:$Q$109,7,FALSE)+G43*VLOOKUP(Q43,$I$83:$Q$109,7,FALSE) -> 0 | S28: =+H33*VLOOKUP(S33,$I$83:$Q$109,3,FALSE)+H35*VLOOKUP(S35,$I$83:$Q$109,3,FALSE)+H37*VLOOKUP(S37,$I$83:$Q$109,3,FALSE)+H39*VLOOKUP(S39,$I$83:$Q$109,7,FALSE)+H41*VLOOKUP(S41,$I$83:$Q$109,7,FALSE)+H43*VLOOKUP(S43,$I$83:$Q$109,7,FALSE) -> 0
C31: Engineering Students Only
C32: Year 1 | E32: Year 2 | F32: Year 3 | G32: Year 4 | H32: Year 5
A33: Masters Students (enter no. of students per term) | I33: Summer | K33: Summer 2013 | M33: Summer 2014 | O33: Summer 2015 | Q33: Summer 2016 | S33: Summer 2017
C34: 1
I35: Fall | K35: Fall 2013 | M35: Fall 2014 | O35: Fall 2015 | Q35: Fall 2016 | S35: Fall 2017
I37: Spring | K37: Spring 2013 | M37: Spring 2014 | O37: Spring 2015 | Q37: Spring 2016 | S37: Spring 2017
C38: Year 1 | E38: Year 2 | F38: Year 3 | G38: Year 4 | H38: Year 5
A39: PhD Students (enter no. of students per term) | C39: 0 | E39: 0 | F39: 0 | G39: 0 | H39: 0 | I39: Summer | K39: Summer 2013 | M39: Summer 2014 | O39: Summer 2015 | Q39: Summer 2016 | S39: Summer 2017
I41: Fall | K41: Fall 2013 | M41: Fall 2014 | O41: Fall 2015 | Q41: Fall 2016 | S41: Fall 2017
C43: 0 | E43: 0 | F43: 0 | G43: 0 | H43: 0 | I43: Spring | K43: Spring 2013 | M43: Spring 2014 | O43: Spring 2015 | Q43: Spring 2016 | S43: Spring 2017
K49: Masters - Min | M49: Masters-Max | O49: PhD - Min | Q49: PhD - Max | S49: esc. Rate
S50: 1.042
S51: 1/4-time
S52: 1/2-time
I53: Fall 2012 | K53: 970 | M53: 1939 | O53: 1939 | Q53: 3878
I54: Fall 2013 | K54: 981 | M54: 1962 | O54: 1962 | Q54: 3924
I55: Fall 2014 | K55: =K54*$S$50 -> 1022.202 | M55: =M54*$S$50 -> 2044.404 | O55: =O54*$S$50 -> 2044.404 | Q55: =Q54*$S$50 -> 4088.808
I56: Fall 2015 | K56: 1065.134484 | M56: =M55*$S$50 -> 2130.268968 | O56: =O55*$S$50 -> 2130.268968 | Q56: =Q55*$S$50 -> 4260.537936
I57: Fall 2016 | K57: 1109.870132 | M57: 2219.740265 | O57: 2219.740265 | Q57: 4439.480529
I58: Fall 2017 | K58: 1156.484678 | M58: 2312.969356 | O58: 2312.969356 | Q58: 4625.938712
I59: Fall 2018 | K59: 1205.057034 | M59: 2410.114069 | O59: 2410.114069 | Q59: 4820.228137
I60: Fall 2019 | K60: 1255.66943 | M60: 2511.33886 | O60: 2511.33886 | Q60: 5022.677719
I62: Spring 2012 | K62: 935 | M62: 1869 | O62: 1869 | Q62: 3738
I63: Spring 2013 | K63: 970 | M63: 1939 | O63: 1939 | Q63: 3878
I64: Spring 2014 | K64: 981 | M64: 1962 | O64: 1962 | Q64: 3924
I65: Spring 2015 | K65: =K64*$S$50 -> 1022.202 | M65: =M64*$S$50 -> 2044.404 | O65: =O64*$S$50 -> 2044.404 | Q65: =Q64*$S$50 -> 4088.808
I66: Spring 2016 | K66: 1065.134484 | M66: 2130.268968 | O66: 2130.268968 | Q66: =Q65*$S$50 -> 4260.537936
I67: Spring 2017 | K67: 1109.870132 | M67: 2219.740265 | O67: 2219.740265 | Q67: 4439.480529
I68: Spring 2018 | K68: 1156.484678 | M68: 2312.969356 | O68: 2312.969356 | Q68: 4625.938712
I69: Spring 2019 | K69: 1205.057034 | M69: 2410.114069 | O69: 2410.114069 | Q69: 4820.228137
I71: Summer 2012 | K71: 539 | M71: 1078 | O71: 1078 | Q71: 2155
I72: Summer 2013 | K72: 545 | M72: 1090 | O72: 1090 | Q72: 2180
I73: Summer 2014 | K73: =K72*$S$50 -> 567.89 | M73: =M72*$S$50 -> 1135.78 | O73: =O72*$S$50 -> 1135.78 | Q73: =Q72*$S$50 -> 2271.56
I74: Summer 2015 | K74: =K73*$S$50 -> 591.74138 | M74: =M73*$S$50 -> 1183.48276 | O74: =O73*$S$50 -> 1183.48276 | Q74: =Q73*$S$50 -> 2366.96552
I75: Summer 2016 | K75: 616.594518 | M75: 1233.189036 | O75: 1233.189036 | Q75: 2466.378072
I76: Summer 2017 | K76: 642.4914877 | M76: 1284.982975 | O76: 1284.982975 | Q76: 2569.965951
I77: Summer 2018 | K77: 669.4761302 | M77: 1338.95226 | O77: 1338.95226 | Q77: 2677.904521
I78: Summer 2019 | K78: 697.5941277 | M78: 1395.188255 | O78: 1395.188255 | Q78: 2790.376511
I80: Engineering students
K81: Masters - Min | M81: Masters-Max | O81: PhD - Min | Q81: PhD - Max
I83: Fall 2012 | K83: 1118 | M83: 2235 | O83: 2235 | Q83: 4470
I84: Fall 2013 | K84: 1131 | M84: 2262 | O84: 2262 | Q84: 4523
I85: Fall 2014 | K85: =K84*$S$50 -> 1178.502 | M85: =M84*$S$50 -> 2357.004 | O85: =O84*$S$50 -> 2357.004 | Q85: =Q84*$S$50 -> 4712.966
I86: Fall 2015 | K86: =K85*$S$50 -> 1227.999084 | M86: =M85*$S$50 -> 2455.998168 | O86: =O85*$S$50 -> 2455.998168 | Q86: =Q85*$S$50 -> 4910.910572
I87: Fall 2016 | K87: 1279.575046 | M87: 2559.150091 | O87: 2559.150091 | Q87: 5117.168816
I88: Fall 2017 | K88: 1333.317197 | M88: 2666.634395 | O88: 2666.634395 | Q88: 5332.089906
I89: Fall 2018 | K89: 1389.31652 | M89: 2778.633039 | O89: 2778.633039 | Q89: 5556.037682
I90: Fall 2019 | K90: 1447.667814 | M90: 2895.335627 | O90: 2895.335627 | Q90: 5789.391265
K91: 0 | O91: 0
I92: Spring 2012 | K92: 1077 | M92: 2154 | O92: 2154 | Q92: 4308
I93: Spring 2013 | K93: 1118 | M93: 2235 | O93: 2235 | Q93: 4470
I94: Spring 2014 | K94: 1131 | M94: 2262 | O94: 2262 | Q94: 4523
I95: Spring 2015 | K95: =K94*$S$50 -> 1178.502 | M95: =M94*$S$50 -> 2357.004 | O95: =O94*$S$50 -> 2357.004 | Q95: =Q94*$S$50 -> 4712.966
I96: Spring 2016 | K96: =K95*$S$50 -> 1227.999084 | M96: =M95*$S$50 -> 2455.998168 | O96: 2455.998168 | Q96: =Q95*$S$50 -> 4910.910572
I97: Spring 2017 | K97: 1279.575046 | M97: 2559.150091 | O97: 2559.150091 | Q97: 5117.168816
I98: Spring 2018 | K98: 1333.317197 | M98: 2666.634395 | O98: 2666.634395 | Q98: 5332.089906
I99: Spring 2019 | K99: 1389.31652 | M99: 2778.633039 | O99: 2778.633039 | Q99: 5556.037682
K100: 0 | O100: 0
I101: Summer 2012 | K101: 621 | M101: 1243 | O101: 1243 | Q101: 2485
I102: Summer 2013 | K102: 629 | M102: 1258 | O102: 1258 | Q102: 2515
I103: Summer 2014 | K103: =K102*$S$50 -> 655.418 | M103: =M102*$S$50 -> 1310.836 | O103: =O102*$S$50 -> 1310.836 | Q103: =Q102*$S$50 -> 2620.63
I104: Summer 2015 | K104: =K103*$S$50 -> 682.945556 | M104: =M103*$S$50 -> 1365.891112 | O104: =O103*$S$50 -> 1365.891112 | Q104: =Q103*$S$50 -> 2730.69646
I105: Summer 2016 | K105: 711.6292694 | M105: 1423.258539 | O105: 1423.258539 | Q105: 2845.385711
I106: Summer 2017 | K106: 741.5176987 | M106: 1483.035397 | O106: 1483.035397 | Q106: 2964.891911
I107: Summer 2018 | K107: 772.661442 | M107: 1545.322884 | O107: 1545.322884 | Q107: 3089.417371
I108: Summer 2019 | K108: 805.1132226 | M108: 1610.226445 | O108: 1610.226445 | Q108: 3219.172901

Sheet BA Upload
A1: Sponsor: | B1: NIH
A2: Title:
A3: PI Name:
A4: Period of Performance:
A5: Account Number:
A7: Budget Categories | B7: Budget Code | C7: Amount
A8: Salary/Hourly | B8: 0108 | C8: =ROUND(SUM('Base Budget'!L90:T90),0) -> 0
A9: Payroll Benefits | B9: 0130 | C9: =ROUND(SUM('Base Budget'!L98:T98),0) -> 0
A10: Equipment | B10: 0710 | C10: =ROUND(SUM('Base Budget'!L117:T117),0) -> 0
A11: Travel Domestic | B11: 0215 | C11: =ROUND(SUM('Base Budget'!L156:T156),0) -> 0
A12: Travel Foreign | B12: 0216 | C12: 0
A13: Student Tuition | B13: 0610 | C13: =ROUND(SUM('Base Budget'!L168:T169),0) -> 0
A14: Supplies | B14: 0410 | C14: =ROUND(SUM('Base Budget'!L134:T134),0) -> 0
A15: Subcontracts
A16: Subject to IDC | B16: 0396 | C16: =ROUND('Base Budget'!AF191,0) -> 0
A17: Not Subejct to IDC | B17: 0376 | C17: =ROUND('Base Budget'!AH191,0) -> 0
A18: Other Direct Costs
A19: Telecom Charges | B19: 0340 | C19: 0
A20: Computer Usage | B20: 0353 | C20: 0
A21: Printing/Copying | B21: 0373 | C21: 0
A22: Services/Honoraria | B22: 0302 | C22: =ROUND(SUM('Base Budget'!L108:T108),0) -> 0
A23: Postage | B23: 0379 | C23: 0
A24: Other | B24: 0630 | C24: =ROUND(SUM('Base Budget'!L140:T140)+SUM('Base Budget'!L148:T148)+SUM('Base Budget'!L160:T166),0) -> 0
A25: Total Direct Costs | C25: =SUM(C8:C24) -> 0
A26: Indirect Costs | B26: 0642 | C26: =ROUND(SUM('Base Budget'!L200:T200),0) -> 0
A27: Total Costs | C27: =SUM(C25:C26) -> 0
A30: Okay to Upload
A31: 2013-10-10
